bitfinex-derivatives/quotes_BTCF0:USTF0_20250827
["timestamp","ask_amount","ask_price","bid_price","bid_amount"]
[1756331432474,1.74685781,111650.0,111640.0,0.04256]
[1756331432976,1.15196777,111650.0,111640.0,0.06378]
[1756331433171,0.31752777,111650.0,111640.0,0.0011]
[1756331433375,2.10653781,111650.0,111640.0,0.0011]
[1756331433572,2.10653781,111650.0,111640.0,0.02278]
[1756331433773,2.10637781,111650.0,111640.0,0.14788]
[1756331433975,2.10641781,111650.0,111640.0,0.14788]
[1756331434169,2.10641781,111650.0,111640.0,0.07627]
[1756331434370,2.10641781,111650.0,111640.0,0.14788]
[1756331434866,2.10641781,111650.0,111640.0,0.06464]
[1756331435075,2.10641781,111650.0,111640.0,0.04256]
[1756331435274,1.15152777,111650.0,111640.0,0.14788]
[1756331435468,2.06641781,111650.0,111640.0,0.09295]
[1756331435674,2.06641781,111650.0,111640.0,0.04256]
[1756331436177,2.06641781,111650.0,111640.0,0.06464]
[1756331436372,1.23241781,111650.0,111640.0,0.02278]
[1756331436580,2.06629781,111650.0,111640.0,0.0011]
[1756331436779,2.06629781,111650.0,111640.0,0.14788]
[1756331437077,2.06629781,111650.0,111640.0,0.1037756]
[1756331437579,2.05629781,111650.0,111640.0,0.1108656]
[1756331437881,2.05629781,111650.0,111640.0,0.1657956]
[1756331438475,2.11629781,111650.0,111640.0,0.0406956]
[1756331438779,1.74629781,111650.0,111640.0,0.1437156]
[1756331438980,1.71922996,111650.0,111640.0,0.0604756]
[1756331439284,1.74630636,111650.0,111640.0,0.0604756]
[1756331439580,1.74630636,111650.0,111640.0,0.0406956]
[1756331439780,2.06630636,111650.0,111640.0,0.0190156]
[1756331440181,1.23242636,111650.0,111640.0,0.0190156]
[1756331440369,1.23242636,111650.0,111640.0,0.0406956]
[1756331440574,2.06650636,111650.0,111640.0,0.0406956]
[1756331441485,2.06650636,111650.0,111640.0,0.0190156]
[1756331442385,2.06654636,111650.0,111640.0,0.0190156]
[1756331445082,2.42734636,111650.0,111640.0,0.0190156]
[1756331449894,2.10734636,111650.0,111640.0,0.0190156]
[1756331450097,2.41734636,111650.0,111640.0,0.0190156]
[1756331450889,2.44734636,111650.0,111640.0,0.0190156]
[1756331451989,0.0895639,111640.0,111630.0,0.8318]
[1756331452190,0.2489839,111640.0,111630.0,0.8318]
[1756331452586,0.84491438,111640.0,111630.0,0.85348]
[1756331452892,0.84491438,111640.0,111630.0,0.99095]
[1756331453290,0.84691438,111640.0,111630.0,0.99195]
[1756331454394,0.84691438,111640.0,111630.0,0.89548]
[1756331454690,0.84691438,111640.0,111630.0,0.99195]
[1756331456195,1.19691438,111640.0,111630.0,0.8328]
[1756331456390,1.2241078,111640.0,111630.0,0.8328]
[1756331456592,1.2241078,111640.0,111630.0,0.85448]
[1756331456798,0.8941078,111640.0,111630.0,0.91015]
[1756331457095,0.86691438,111640.0,111630.0,0.99195]
[1756331457296,0.2709839,111640.0,111630.0,0.99195]
[1756331457496,0.89410085,111640.0,111630.0,0.99195]
[1756331458197,0.86691438,111640.0,111630.0,0.99195]
[1756331459203,0.86691438,111640.0,111630.0,0.16015]
[1756331460705,0.86691438,111640.0,111630.0,0.09813]
[1756331461002,0.86691438,111640.0,111630.0,0.15734]
[1756331462203,1.22771438,111640.0,111630.0,0.15734]
[1756331462700,1.57771438,111640.0,111630.0,0.15734]
[1756331463907,0.6317839,111640.0,111630.0,0.15734]
[1756331464109,1.22771438,111640.0,111630.0,0.15734]
[1756331465104,1.22771438,111640.0,111630.0,0.13003]
[1756331466307,1.22771438,111640.0,111630.0,0.09813]
[1756331466704,1.22771438,111640.0,111630.0,0.15734]
[1756331466909,1.22771438,111640.0,111630.0,0.09813]
[1756331467206,1.22771438,111640.0,111630.0,0.02268]
[1756331467808,1.22771438,111640.0,111630.0,0.06502]
[1756331468009,1.22771438,111640.0,111630.0,0.09938]
[1756331468507,1.22771438,111640.0,111630.0,0.06502]
[1756331470210,1.22771438,111640.0,111630.0,0.04173]
[1756331471213,0.6317839,111640.0,111630.0,0.15859]
[1756331471415,1.22771438,111640.0,111630.0,0.09948]
[1756331471606,1.22771438,111640.0,111630.0,0.04183]
[1756331471806,1.22771438,111640.0,111630.0,0.02278]
[1756331472708,0.6317839,111640.0,111630.0,0.09948]
[1756331472913,1.22771438,111640.0,111630.0,0.0011]
[1756331473113,1.22771438,111640.0,111630.0,0.02372]
[1756331473414,1.22771438,111640.0,111630.0,0.0011]
[1756331473907,1.82567962,111640.0,111630.0,0.0011]
[1756331474914,1.52771438,111640.0,111630.0,0.0011]
[1756331475915,1.82567962,111640.0,111630.0,0.0011]
[1756331479116,0.0895718,111630.0,111620.0,0.3608]
[1756331479319,0.2454498,111620.0,111610.0,0.09862537]
[1756331479506,0.84138028,111620.0,111610.0,0.08331537]
[1756331479918,0.2454498,111620.0,111610.0,0.11767537]
[1756331480116,0.2454498,111620.0,111610.0,0.17688537]
[1756331480117,0.84138028,111620.0,111610.0,0.17688537]
[1756331480515,0.84038028,111620.0,111610.0,0.17688537]
[1756331480914,0.84038028,111620.0,111610.0,0.15853]
[1756331481115,0.84138028,111620.0,111610.0,0.16053]
[1756331481720,0.84138028,111620.0,111610.0,0.15953]
[1756331482020,0.81358028,111620.0,111610.0,0.16153]
[1756331482714,0.84138028,111620.0,111610.0,0.15953]
[1756331482913,0.84138028,111620.0,111610.0,0.16053]
[1756331483511,0.2454498,111620.0,111610.0,0.16053]
[1756331483715,0.84138028,111620.0,111610.0,0.16053]
[1756331487718,0.84138028,111620.0,111610.0,0.10132]
[1756331488726,0.84138028,111620.0,111610.0,0.16379]
[1756331489323,1.68154552,111620.0,111610.0,0.002]
[1756331489524,0.2434758,111600.0,111590.0,0.45534]
[1756331489826,0.83940628,111600.0,111590.0,0.42119]
[1756331490322,0.85186084,111600.0,111590.0,0.45568]
[1756331490527,0.85186084,111600.0,111590.0,0.42119]
[1756331490824,0.85186084,111600.0,111590.0,0.4031]
[1756331491026,0.85186084,111600.0,111590.0,0.51815]
[1756331491321,0.92181817,111600.0,111590.0,0.48973]
[1756331491627,0.92281817,111600.0,111590.0,0.4071]
[1756331491827,0.92281817,111600.0,111590.0,0.42519]
[1756331492028,0.7473474,111600.0,111590.0,0.42519]
[1756331492224,1.1867832,111600.0,111590.0,0.45361]
[1756331492432,1.4367832,111600.0,111590.0,0.39522]
[1756331492630,1.4367832,111600.0,111590.0,0.41622]
[1756331492829,1.1067832,111600.0,111590.0,0.41622]
[1756331493027,1.1067832,111600.0,111590.0,0.52215]
[1756331493527,0.8567832,111600.0,111590.0,0.52015]
[1756331494123,0.9071532,111600.0,111590.0,0.52015]
[1756331497331,0.9071532,111600.0,111590.0,0.15935]
[1756331498231,0.31122272,111600.0,111590.0,0.15935]
[1756331498432,0.31122272,111600.0,111590.0,0.15945]
[1756331498628,0.26486272,111600.0,111590.0,0.70741524]
[1756331498832,0.47097293,111600.0,111590.0,0.70741524]
[1756331499434,0.49323293,111600.0,111590.0,0.70741524]
[1756331500024,0.47097293,111600.0,111590.0,0.70741524]
[1756331500228,0.19526769,111600.0,111590.0,0.70741524]
[1756331500429,0.49323293,111600.0,111590.0,1.06821524]
[1756331501135,0.51664293,111600.0,111590.0,1.06821524]
[1756331501434,0.49323293,111600.0,111590.0,1.06821524]
[1756331502025,0.29266769,111600.0,111590.0,0.77025]
[1756331502230,0.88859817,111600.0,111590.0,0.77025]
[1756331502433,0.90715817,111600.0,111590.0,0.77025]
[1756331502634,0.88859817,111600.0,111590.0,1.06821524]
[1756331502834,0.59063293,111600.0,111590.0,1.06821524]
[1756331504640,0.27282769,111600.0,111590.0,1.06821524]
[1756331504838,0.57079293,111600.0,111590.0,1.06821524]
[1756331505236,0.59063293,111600.0,111590.0,1.06821524]
[1756331505538,0.59063293,111600.0,111590.0,0.52025]
[1756331505736,1.88795817,111600.0,111590.0,0.0021]
[1756331506033,2.35791817,111600.0,111590.0,0.0021]
[1756331506238,0.1503531,111580.0,111570.0,0.41032]
[1756331506434,0.82376358,111580.0,111570.0,0.91157]
[1756331506635,0.49819054,111580.0,111570.0,0.91157]
[1756331506841,1.09412102,111580.0,111570.0,0.91157]
[1756331507135,1.09312102,111580.0,111570.0,0.87248]
[1756331507337,1.57574582,111580.0,111570.0,0.85118]
[1756331507533,2.41602582,111580.0,111570.0,0.82276]
[1756331508240,0.1399992,111560.0,111550.0,3.00158]
[1756331508437,0.53775448,111560.0,111550.0,3.00148]
[1756331508638,0.51919448,111560.0,111550.0,3.00148]
[1756331508838,0.51619448,111560.0,111550.0,3.00148]
[1756331509537,0.51619448,111560.0,111550.0,3.00348]
[1756331509839,0.1184392,111560.0,111550.0,3.00348]
[1756331510037,0.1194392,111560.0,111550.0,3.00548]
[1756331510638,0.13180693,111560.0,111550.0,3.00548]
[1756331511646,0.0876292,111560.0,111550.0,3.65323528]
[1756331511941,0.51719448,111560.0,111550.0,1.55196]
[1756331512335,0.0876292,111560.0,111550.0,1.55196]
[1756331512736,0.1194392,111560.0,111550.0,1.55196]
[1756331512940,0.0876292,111560.0,111550.0,1.55196]
[1756331513145,0.0876292,111560.0,111550.0,1.30196]
[1756331514955,0.2372814,111570.0,111560.0,0.15735]
[1756331515458,0.61647668,111570.0,111560.0,0.15735]
[1756331515661,0.63503668,111570.0,111560.0,0.15735]
[1756331516152,0.63703668,111570.0,111560.0,0.15935]
[1756331517262,0.2392814,111570.0,111560.0,0.15935]
[1756331517557,0.64899074,111570.0,111560.0,0.15935]
[1756331519556,0.0896292,111560.0,111550.0,0.3608]
[1756331519760,0.63861448,111560.0,111550.0,0.48656]
[1756331519952,0.2408592,111560.0,111550.0,0.5206]
[1756331520156,0.62005448,111560.0,111550.0,0.5206]
[1756331520354,0.63861448,111560.0,111550.0,0.5206]
[1756331520570,0.63861448,111560.0,111550.0,0.48656]
[1756331520763,0.63861448,111560.0,111550.0,0.5226]
[1756331521156,0.62005448,111560.0,111550.0,0.5226]
[1756331521564,0.62005448,111560.0,111550.0,0.5216]
[1756331521859,0.2222992,111560.0,111550.0,0.5216]
[1756331522059,0.62105448,111560.0,111550.0,0.5236]
[1756331522262,0.63961448,111560.0,111550.0,0.48956]
[1756331522463,0.63861448,111560.0,111550.0,0.43516]
[1756331522666,0.63961448,111560.0,111550.0,0.41392]
[1756331523065,0.63961448,111560.0,111550.0,0.09354]
[1756331523564,0.2418592,111560.0,111550.0,0.12758]
[1756331523762,0.63961448,111560.0,111550.0,0.09354]
[1756331524267,0.2418592,111560.0,111550.0,0.09354]
[1756331524464,0.63961448,111560.0,111550.0,0.12758]
[1756331524759,0.1426172,111550.0,111540.0,1.21904]
[1756331524967,0.54037248,111550.0,111540.0,1.28216]
[1756331525278,0.1240572,111550.0,111540.0,1.28216]
[1756331525561,0.52181248,111550.0,111540.0,1.28216]
[1756331525953,0.1240572,111550.0,111540.0,1.28216]
[1756331526865,0.1250572,111550.0,111540.0,1.28216]
[1756331527367,0.1250572,111550.0,111540.0,1.28416]
[1756331527866,0.52281248,111550.0,111540.0,1.28216]
[1756331528062,0.52281248,111550.0,111540.0,1.28316]
[1756331529158,0.1250572,111550.0,111540.0,1.28316]
[1756331529366,0.52281248,111550.0,111540.0,1.28316]
[1756331531260,0.1867172,111550.0,111540.0,0.46534]
[1756331531460,0.56591248,111550.0,111540.0,0.46534]
[1756331534670,0.1681572,111550.0,111540.0,0.46534]
[1756331534967,0.56591248,111550.0,111540.0,0.46534]
[1756331535474,0.58447248,111550.0,111540.0,0.4313]
[1756331535662,0.58447248,111550.0,111540.0,1.33522]
[1756331535865,0.53149248,111550.0,111540.0,1.33522]
[1756331536064,0.56591248,111550.0,111540.0,1.33522]
[1756331540073,0.58447248,111550.0,111540.0,0.03008]
[1756331540274,0.7975172,111550.0,111540.0,0.0705]
[1756331540572,0.1857334,111530.0,111520.0,0.38988]
[1756331540769,0.1946414,111520.0,111510.0,0.40122]
[1756331541071,2.48030491,111520.0,111510.0,0.04042]
[1756331541570,2.48030491,111520.0,111510.0,0.07446]
[1756331541774,2.48030491,111520.0,111510.0,0.04042]
[1756331541961,2.55308805,111520.0,111510.0,0.07446]
[1756331542167,0.0896694,111510.0,111500.0,1.10804]
[1756331542371,0.54930468,111510.0,111500.0,1.10804]
[1756331542870,0.54930468,111510.0,111500.0,1.13702]
[1756331543270,0.55230468,111510.0,111500.0,1.13702]
[1756331543574,0.55330468,111510.0,111500.0,1.13702]
[1756331544573,0.1555494,111510.0,111500.0,1.13702]
[1756331544773,0.55330468,111510.0,111500.0,1.13702]
[1756331544973,0.1946575,111500.0,111490.0,0.97764]
[1756331545370,0.1946575,111500.0,111490.0,0.9436]
[1756331545669,0.60431975,111500.0,111490.0,0.9804]
[1756331545876,0.20656447,111500.0,111490.0,0.9804]
[1756331546070,0.60431975,111500.0,111490.0,0.9804]
[1756331546470,0.60731975,111500.0,111490.0,0.9804]
[1756331547470,0.60831975,111500.0,111490.0,0.9804]
[1756331549976,0.60831975,111500.0,111490.0,0.97955]
[1756331550672,0.191135,111490.0,111480.0,0.40283]
[1756331550873,0.1727631,111480.0,111470.0,1.34119]
[1756331551066,0.58889838,111480.0,111470.0,1.34119]
[1756331551272,0.83889838,111480.0,111470.0,0.98039]
[1756331551474,0.83889838,111480.0,111470.0,0.10251]
[1756331551872,0.83889838,111480.0,111470.0,0.06932]
[1756331552669,0.83889838,111480.0,111470.0,0.10251]
[1756331552875,0.89637838,111480.0,111470.0,0.15628]
[1756331553075,0.90037838,111480.0,111470.0,0.15628]
[1756331554475,0.90037838,111480.0,111470.0,0.12309]
[1756331554678,0.90037838,111480.0,111460.0,1.29878]
[1756331554679,0.1839811,111470.0,111460.0,1.29878]
[1756331554879,0.64538638,111470.0,111460.0,0.51708]
[1756331555280,0.66503873,111470.0,111460.0,0.51708]
[1756331555878,0.66603873,111470.0,111460.0,0.51708]
[1756331556180,0.67003873,111470.0,111460.0,0.3608]
[1756331556377,1.03083873,111470.0,111460.0,0.04829]
[1756331556587,1.03083873,111470.0,111460.0,0.09032]
[1756331557183,1.03083873,111470.0,111460.0,0.15628]
[1756331557370,0.2476392,111460.0,111450.0,0.021]
[1756331557574,0.64539448,111460.0,111450.0,0.04829]
[1756331557873,0.2476472,111450.0,111440.0,0.51708]
[1756331558174,0.65757137,111450.0,111440.0,0.3608]
[1756331558375,0.65757137,111450.0,111440.0,0.51708]
[1756331558970,0.25981609,111450.0,111440.0,0.51708]
[1756331559177,0.65757137,111450.0,111440.0,0.51708]
[1756331559476,0.73158693,111450.0,111440.0,0.51718]
[1756331560584,0.73158693,111450.0,111440.0,0.09042]
[1756331560969,0.73158693,111450.0,111440.0,0.12319]
[1756331561172,0.73158693,111450.0,111440.0,0.15638]
[1756331561975,0.73158693,111450.0,111440.0,0.12319]
[1756331562283,0.73158693,111450.0,111440.0,0.0001]
[1756331562783,0.75165829,111450.0,111440.0,0.0211]
[1756331563080,0.75165829,111450.0,111440.0,0.0001]
[1756331563675,0.75165829,111450.0,111440.0,0.04839]
[1756331564074,0.77849719,111450.0,111440.0,0.09042]
[1756331564376,0.38074191,111450.0,111440.0,0.0211]
[1756331564575,0.77849719,111450.0,111440.0,0.04839]
[1756331565489,0.2476552,111440.0,111430.0,0.15628]
[1756331565681,0.67225286,111440.0,111430.0,0.15628]
[1756331565880,0.27449758,111440.0,111430.0,0.15628]
[1756331566783,0.67225286,111440.0,111430.0,0.15628]
[1756331567185,0.27749758,111440.0,111430.0,0.15828]
[1756331567887,0.27749758,111440.0,111430.0,0.15628]
[1756331568086,0.27849758,111440.0,111430.0,0.15628]
[1756331569689,0.67625286,111440.0,111430.0,0.15628]
[1756331570687,0.27849758,111440.0,111430.0,0.15628]
[1756331571687,0.25106758,111440.0,111430.0,0.91483528]
[1756331571990,0.21713758,111440.0,111430.0,0.91483528]
[1756331572578,0.12056758,111440.0,111430.0,2.06127528]
[1756331572791,0.08528445,111450.0,111440.0,0.07932]
[1756331572988,0.17490155,111450.0,111440.0,0.85887528]
[1756331573291,0.17490155,111450.0,111440.0,1.75507528]
[1756331574194,0.17590155,111450.0,111440.0,1.75507528]
[1756331574394,0.17990155,111450.0,111440.0,1.75507528]
[1756331574586,0.17990155,111450.0,111440.0,2.00507528]
[1756331574781,0.16773266,111450.0,111440.0,2.00507528]
[1756331577690,0.16773266,111450.0,111440.0,2.09480038]
[1756331578792,0.0898142,111460.0,111450.0,0.04824]
[1756331579098,0.0897142,111460.0,111450.0,0.82482528]
[1756331579597,0.0897142,111460.0,111450.0,0.42707]
[1756331579797,0.1173042,111460.0,111450.0,0.82482528]
[1756331580194,0.0917142,111460.0,111450.0,0.82482528]
[1756331580498,0.1213042,111460.0,111450.0,0.82582528]
[1756331581300,0.0937142,111460.0,111450.0,0.82582528]
[1756331581601,0.1213042,111460.0,111450.0,0.82582528]
[1756331581800,0.0937142,111460.0,111450.0,0.91554238]
[1756331581995,0.0937142,111460.0,111450.0,1.16554238]
[1756331582315,1.0673725,111520.0,111450.0,1.16554238]
[1756331582490,2.39290109,111560.0,111520.0,0.04425]
[1756331582491,0.10215135,111530.0,111520.0,0.04425]
[1756331582691,0.25678405,111530.0,111520.0,0.81236528]
[1756331582996,0.2454227,111530.0,111520.0,0.81236528]
[1756331583301,0.2454227,111530.0,111520.0,1.71880528]
[1756331584099,0.25680445,111530.0,111520.0,1.71880528]
[1756331584300,0.26080445,111530.0,111520.0,1.71990528]
[1756331584498,0.26080445,111530.0,111520.0,1.32215]
[1756331584801,0.26080445,111530.0,111520.0,1.71990528]
[1756331585396,0.004,111530.0,111520.0,2.21978136]
[1756331585703,0.02779,111540.0,111530.0,0.5167227]
[1756331585704,0.0002,111540.0,111530.0,0.5167227]
[1756331585899,0.02779,111550.0,111540.0,0.1559147]
[1756331586088,0.02759,111550.0,111540.0,1.82120998]
[1756331586289,0.26522702,111560.0,111550.0,0.08506]
[1756331586497,0.23142702,111560.0,111550.0,0.84371528]
[1756331586697,0.13684702,111560.0,111550.0,0.84371528]
[1756331587104,0.21448702,111560.0,111550.0,0.84371528]
[1756331587404,0.04721422,111560.0,111550.0,1.00162257]
[1756331587704,0.04721422,111560.0,111550.0,1.00262257]
[1756331587705,0.05121422,111560.0,111550.0,1.00262257]
[1756331587903,0.05421422,111560.0,111550.0,1.00262257]
[1756331588199,0.05021422,111560.0,111550.0,1.00162257]
[1756331588403,0.05321422,111560.0,111550.0,1.00262257]
[1756331588800,0.14284282,111560.0,111550.0,1.90854257]
[1756331589104,0.14284282,111560.0,111550.0,1.00262257]
[1756331589307,0.14284282,111560.0,111550.0,1.90766257]
[1756331589497,0.11425282,111560.0,111550.0,1.90766257]
[1756331590304,0.05221422,111560.0,111550.0,1.90766257]
[1756331591102,0.14184312,111560.0,111550.0,1.90766257]
[1756331591803,0.05221422,111560.0,111550.0,1.90766257]
[1756331592005,0.05221422,111560.0,111550.0,1.4416366]
[1756331592204,0.05221422,111560.0,111550.0,1.90766257]
[1756331592407,0.14184312,111560.0,111550.0,1.90766257]
[1756331592798,0.14184312,111560.0,111550.0,1.4416366]
[1756331593106,0.14184312,111560.0,111550.0,1.90766257]
[1756331594505,0.05221422,111560.0,111550.0,1.90766257]
[1756331596302,0.02462422,111560.0,111550.0,1.90766257]
[1756331596506,0.05221422,111560.0,111550.0,1.90218257]
[1756331598604,1.55221422,111560.0,111550.0,1.90218257]
[1756331599906,1.55221422,111560.0,111550.0,1.00262257]
[1756331600104,1.55221422,111560.0,111550.0,1.90074257]
[1756331601009,1.58581422,111560.0,111550.0,1.90074257]
[1756331601202,1.75086312,111560.0,111550.0,1.00262257]
[1756331601401,1.71948312,111560.0,111550.0,1.89910257]
[1756331601899,1.75086312,111560.0,111550.0,1.89910257]
[1756331602906,1.75086312,111560.0,111550.0,1.89906257]
[1756331603105,2.02002312,111560.0,111550.0,1.25714]
[1756331603301,2.02002312,111560.0,111550.0,0.3619]
[1756331603506,2.02002312,111560.0,111550.0,0.3269]
[1756331603708,2.02002312,111560.0,111550.0,1.18958]
[1756331605714,2.02002312,111560.0,111550.0,0.2919]
[1756331605914,2.02002312,111560.0,111550.0,1.18942]
[1756331606711,2.02002312,111560.0,111550.0,0.2919]
[1756331607015,2.02002312,111560.0,111550.0,1.18754]
[1756331607513,2.48604909,111560.0,111550.0,0.2137]
[1756331607709,0.0896369,111550.0,111540.0,1.27468877]
[1756331607904,0.1246369,111550.0,111540.0,1.66268877]
[1756331608109,0.1246369,111550.0,111540.0,1.72850877]
[1756331608911,0.1256369,111550.0,111540.0,1.72850877]
[1756331610015,0.1286369,111550.0,111540.0,1.72950877]
[1756331610915,0.1596569,111550.0,111540.0,1.77261877]
[1756331612418,0.18413162,111550.0,111540.0,1.77261877]
[1756331613720,0.1596569,111550.0,111540.0,1.77261877]
[1756331613914,0.18413824,111550.0,111540.0,0.74106877]
[1756331614112,0.83198766,111550.0,111540.0,0.3618]
[1756331614315,0.43413824,111550.0,111540.0,0.3618]
[1756331614614,1.19278766,111550.0,111540.0,0.001]
[1756331614820,0.1615049,111540.0,111530.0,0.0001]
[1756331615019,0.161513,111530.0,111520.0,0.37905445]
[1756331615322,0.161513,111530.0,111520.0,0.01815445]
[1756331615323,0.94464376,111530.0,111520.0,0.01815445]
[1756331615514,1.24170015,111530.0,111520.0,0.01815445]
[1756331616629,1.24270015,111530.0,111520.0,0.01915445]
[1756331616833,1.24270015,111530.0,111520.0,0.02015445]
[1756331617028,1.19564376,111530.0,111520.0,0.02015445]
[1756331617522,1.19964376,111530.0,111520.0,0.00100005]
[1756331617729,1.59749318,111530.0,111520.0,5e-08]
[1756331617930,0.089661,111520.0,111510.0,0.0179206]
[1756331618130,1.47733176,111520.0,111510.0,0.0178206]
[1756331618630,1.94674505,111520.0,111510.0,0.0178206]
[1756331619223,1.54889563,111520.0,111510.0,0.0178206]
[1756331619427,1.90969563,111520.0,111510.0,0.0178206]
[1756331619832,1.91069563,111520.0,111510.0,0.0178206]
[1756331620133,1.91469563,111520.0,111510.0,0.0188206]
[1756331620632,1.51684621,111520.0,111510.0,0.0188206]
[1756331620825,2.16469563,111520.0,111500.0,0.0001]
[1756331621030,0.1615371,111500.0,111490.0,0.06011]
[1756331621337,0.58386786,111500.0,111490.0,0.18104]
[1756331621527,0.58377611,111500.0,111490.0,0.18104]
[1756331621833,0.1615451,111490.0,111480.0,0.56002388]
[1756331622029,0.55939452,111490.0,111480.0,0.55992388]
[1756331622236,0.55939452,111490.0,111480.0,0.54184]
[1756331622437,0.57939452,111490.0,111480.0,0.54184]
[1756331623235,0.5907065,111490.0,111480.0,0.54184]
[1756331623733,0.5897065,111490.0,111480.0,0.54184]
[1756331624325,0.5957065,111490.0,111480.0,0.54284]
[1756331624628,0.5977065,111490.0,111480.0,0.18204]
[1756331624829,1.11065708,111490.0,111480.0,1e-07]
[1756331625033,1.53286014,111490.0,111480.0,1e-07]
[1756331625228,0.0896933,111480.0,111470.0,6.01e-05]
[1756331625433,1.29020272,111480.0,111470.0,6.01e-05]
[1756331625629,1.29020272,111480.0,111470.0,1e-07]
[1756331625630,2.86794855,111480.0,111470.0,1e-07]
[1756331625830,0.0897092,111460.0,111450.0,0.0812301]
[1756331626032,0.0897092,111460.0,111450.0,0.1623001]
[1756331626033,0.23251132,111460.0,111450.0,0.1623001]
[1756331626230,0.65036074,111460.0,111450.0,0.1810001]
[1756331626530,1.01116074,111460.0,111450.0,0.1479401]
[1756331626736,1.01116074,111460.0,111450.0,0.0278601]
[1756331626937,1.30116074,111460.0,111450.0,0.0278601]
[1756331627133,0.99016074,111460.0,111450.0,0.0278601]
[1756331627433,1.99038312,111460.0,111450.0,0.0599701]
[1756331627735,1.99038312,111460.0,111450.0,0.0288601]
[1756331627736,1.99138312,111460.0,111450.0,0.0288601]
[1756331627927,1.97138312,111460.0,111450.0,0.001]
[1756331628128,0.0897174,111450.0,111440.0,0.11328]
[1756331628338,0.6276892,111450.0,111440.0,0.18104]
[1756331628735,0.1615854,111440.0,111430.0,0.50837792]
[1756331629032,0.6286972,111440.0,111430.0,0.52314]
[1756331629232,0.6286972,111440.0,111430.0,0.3887]
[1756331629432,0.6286972,111440.0,111430.0,0.54184]
[1756331629632,0.6286972,111440.0,111430.0,0.47513]
[1756331629834,0.6286972,111440.0,111430.0,0.54184]
[1756331630133,0.6286972,111440.0,111430.0,0.41417]
[1756331630134,0.4105854,111440.0,111430.0,0.41417]
[1756331630330,0.1615929,111430.0,111420.0,0.54194]
[1756331630525,0.6277047,111430.0,111420.0,0.52314]
[1756331630728,0.1605929,111430.0,111420.0,0.54184]
[1756331630929,0.6277047,111430.0,111420.0,0.54184]
[1756331631335,0.6267047,111430.0,111420.0,0.47513]
[1756331631533,0.6267047,111430.0,111420.0,0.16234]
[1756331631842,0.9875047,111430.0,111420.0,0.14798]
[1756331632140,1.0075047,111430.0,111420.0,0.14998]
[1756331632340,1.0075047,111430.0,111420.0,0.18304]
[1756331632639,0.6467047,111430.0,111420.0,0.18304]
[1756331632837,0.6487047,111430.0,111420.0,0.18304]
[1756331633139,0.1815929,111430.0,111420.0,0.18304]
[1756331633334,0.6487047,111430.0,111420.0,0.18304]
[1756331633841,0.6487047,111430.0,111420.0,0.08327]
[1756331634139,0.1815929,111430.0,111420.0,0.11633]
[1756331634339,0.6487047,111430.0,111420.0,0.18304]
[1756331634539,0.6487047,111430.0,111420.0,0.08327]
[1756331634735,0.6487047,111430.0,111420.0,0.002]
[1756331634936,0.6487047,111430.0,111420.0,0.0299]
[1756331635136,0.6487047,111430.0,111420.0,0.08327]
[1756331635545,0.6487047,111430.0,111420.0,0.0299]
[1756331635838,0.6487047,111430.0,111420.0,0.06201]
[1756331636040,0.6487047,111430.0,111420.0,0.11633]
[1756331636241,0.6487047,111430.0,111420.0,0.18304]
[1756331637042,0.9887047,111430.0,111420.0,0.18304]
[1756331637243,0.5215929,111430.0,111420.0,0.18304]
[1756331637441,0.9887047,111430.0,111420.0,0.54384]
[1756331637637,0.6287047,111430.0,111420.0,0.54384]
[1756331638134,0.6287047,111430.0,111420.0,0.18304]
[1756331639033,0.6287047,111430.0,111420.0,0.54384]
[1756331639234,0.6287047,111430.0,111420.0,0.18304]
[1756331640239,0.04926,111430.0,111420.0,0.18304]
[1756331640442,0.6251047,111430.0,111420.0,0.18304]
[1756331642843,0.0897329,111430.0,111420.0,0.43304]
[1756331643148,0.0897329,111430.0,111420.0,0.79384]
[1756331643846,0.0888254,111440.0,111430.0,0.18249]
[1756331643847,0.0898251,111440.0,111430.0,0.18249]
[1756331644046,0.0897251,111440.0,111430.0,0.54329]
[1756331644236,0.0897251,111440.0,111430.0,0.79329]
[1756331644639,0.0897251,111440.0,111430.0,1.2604018]
[1756331645139,0.0394651,111440.0,111430.0,0.79329]
[1756331645338,0.0394651,111440.0,111430.0,1.2604018]
[1756331645647,0.01972258,111450.0,111440.0,0.12696]
[1756331645837,0.18200112,111460.0,111450.0,0.12696]
[1756331646038,0.16065112,111460.0,111450.0,0.48776]
[1756331646438,0.089709,111460.0,111450.0,0.73776]
[1756331646642,0.089709,111460.0,111450.0,1.2048718]
[1756331647043,0.042279,111460.0,111450.0,1.2048718]
[1756331647249,1.542279,111460.0,111450.0,1.2048718]
[1756331647447,1.542279,111460.0,111450.0,1.6518]
[1756331647648,1.545279,111460.0,111450.0,2.1189118]
[1756331648947,1.542279,111460.0,111450.0,2.1189118]
[1756331649142,1.543279,111460.0,111450.0,2.1199118]
[1756331649545,1.541279,111460.0,111450.0,2.1189118]
[1756331649747,1.544279,111460.0,111450.0,2.1189118]
[1756331650145,1.541279,111460.0,111450.0,2.1189118]
[1756331650344,1.543279,111460.0,111450.0,2.1199118]
[1756331651246,1.543279,111460.0,111450.0,1.6528]
[1756331651445,1.543279,111460.0,111450.0,2.1199118]
[1756331652056,1.623229,111460.0,111450.0,1.6528]
[1756331652352,1.575069,111460.0,111450.0,2.1199118]
[1756331652547,1.543279,111460.0,111450.0,2.1189918]
[1756331653751,1.543279,111460.0,111450.0,1.6508]
[1756331654250,1.575069,111460.0,111450.0,1.6508]
[1756331654746,1.575069,111460.0,111450.0,1.4008]
[1756331654953,1.694259,111460.0,111450.0,0.48876]
[1756331655160,1.694259,111460.0,111450.0,1.40076]
[1756331655349,2.1732508,111460.0,111450.0,1.40008]
[1756331655752,1.706139,111460.0,111450.0,0.48876]
[1756331655949,1.706139,111460.0,111450.0,1.39992]
[1756331656251,1.706139,111460.0,111450.0,0.48876]
[1756331656553,1.706139,111460.0,111450.0,1.39992]
[1756331657660,1.706139,111460.0,111450.0,1.39968]
[1756331657846,1.706139,111460.0,111450.0,1.03888]
[1756331658046,1.706139,111460.0,111450.0,1.39968]
[1756331658250,2.7432508,111460.0,111450.0,1.33234]
[1756331658452,2.46759729,111460.0,111450.0,1.33234]
[1756331658954,2.81759729,111460.0,111450.0,0.42302]
[1756331659157,2.81759729,111460.0,111450.0,0.39114]
[1756331659551,2.81759729,111460.0,111450.0,0.3618]
[1756331659858,0.2216969,111450.0,111440.0,1.29892]
[1756331660052,0.2335769,111450.0,111440.0,1.29882]